bitfinex/quotes_SOLUSD_20250111
["timestamp","ask_amount","ask_price","bid_price","bid_amount"]
[1736623331725,8.1844,188.16,188.04,8.90472897]
[1736623332939,8.1844,188.16,188.06,8.90472897]
[1736623336251,26.434384,188.15,188.03,134.9]
[1736623336438,1.6041,188.14,188.03,143.80472897]
[1736623336949,1.6041,188.14,188.04,8.90472897]
[1736623339039,6.0134,188.13,188.04,8.90472897]
[1736623339242,6.0134,188.13,188.01,217.5]
[1736623339447,6.0134,188.13,188.03,8.90472897]
[1736623340050,6.0134,188.13,188.05,8.90472897]
[1736623340833,6.0134,188.13,188.04,20.0]
[1736623341034,6.0134,188.13,188.05,8.90472897]
[1736623341332,6.0134,188.13,188.04,28.90472897]
[1736623341651,6.0134,188.13,188.05,8.90472897]
[1736623343153,6.0134,188.13,188.07,8.90472897]
[1736623344653,6.0134,188.13,188.09,8.90472897]
[1736623344857,1.6041,188.14,188.11,8.90472897]
[1736623346130,1.6041,188.14,188.1,8.90472897]
[1736623348864,1.6041,188.14,188.09,20.0]
[1736623349048,1.6041,188.14,188.09,28.90472897]
[1736623349756,1.6041,188.14,188.1,8.90472897]
[1736623349975,6.4827,188.18,188.12,8.90472897]
[1736623350257,6.4827,188.18,188.09,20.79716966]
[1736623350258,6.4827,188.18,188.13,8.90472897]
[1736623350562,1.5321,188.19,188.14,8.90472897]
[1736623352063,1.5321,188.19,188.15,8.90472897]
[1736623353761,1.5321,188.19,188.14,8.90472897]
[1736623358146,1.5321,188.19,188.13,8.90472897]
[1736623358963,1.5321,188.19,188.12,134.9]
[1736623359164,1.5321,188.19,188.12,143.80472897]
[1736623359546,1.5321,188.19,188.1,28.90472897]
[1736623361872,1.5321,188.19,188.12,8.90472897]
[1736623363372,1.5321,188.19,188.13,8.90472897]
[1736623366068,1.5321,188.19,188.12,8.90472897]
[1736623372975,1.5321,188.19,188.12,20.0]
[1736623375457,1.5321,188.19,188.12,28.90472897]
[1736623379088,1.5321,188.19,188.13,8.90472897]
[1736623379270,1.5321,188.19,188.14,8.90472897]
[1736623379463,1.5321,188.19,188.13,8.90472897]
[1736623380385,1.5321,188.19,188.12,28.90472897]
[1736623382074,1.5321,188.19,188.13,8.90472897]
[1736623383986,1.5321,188.19,188.12,28.90472897]
[1736623384778,1.5321,188.19,188.12,20.0]
[1736623385083,1.5321,188.19,188.08,13.2919]
[1736623385380,6.2412,188.18,188.09,8.90472897]
[1736623386067,6.2412,188.18,188.06,226.40472897]
[1736623386266,1.6358,188.17,188.06,226.40472897]
[1736623387084,1.6358,188.17,188.06,217.5]
[1736623387460,1.6358,188.17,188.07,20.0]
[1736623387659,4.2929,188.17,188.08,20.0]
[1736623389386,4.2929,188.17,188.06,8.90472897]
[1736623391887,1.6358,188.17,188.08,8.90472897]
[1736623392391,1.6358,188.17,188.07,20.0]
[1736623392775,1.6358,188.17,188.08,8.90472897]
[1736623393876,1.6358,188.17,188.1,8.90472897]
[1736623397881,1.6358,188.17,188.07,24.57411821]
[1736623398191,1.6358,188.17,188.08,8.90472897]
[1736623400272,1.6358,188.17,188.09,8.90472897]
[1736623400503,1.6358,188.17,188.08,8.90472897]
[1736623401095,1.6358,188.17,188.09,8.90472897]
[1736623406703,1.6358,188.17,188.08,8.90472897]
[1736623406898,1.6358,188.17,188.07,143.80472897]
[1736623407299,1.6358,188.17,188.06,20.0]
[1736623407599,6.2396,188.15,188.04,8.90472897]
[1736623407819,7.7571,188.15,188.04,8.90472897]
[1736623408721,7.7571,188.15,188.06,20.0]
[1736623409224,7.7571,188.15,188.05,20.0]
[1736623410186,7.7571,188.15,188.05,28.90472897]
[1736623411902,7.7571,188.15,188.06,8.90472897]
[1736623412781,7.7571,188.15,188.05,20.0]
[1736623412782,7.7571,188.15,188.05,28.90472897]
[1736623415907,7.7571,188.15,188.06,8.90472897]
[1736623418317,7.7571,188.15,188.07,8.90472897]
[1736623418609,7.7571,188.15,188.1,8.90472897]
[1736623418790,7.7571,188.15,188.09,8.90472897]
[1736623421612,7.7571,188.15,188.07,8.90472897]
[1736623422016,7.7571,188.15,188.06,217.5]
[1736623422311,7.7571,188.15,188.06,226.40472897]
[1736623423409,7.7571,188.15,188.06,217.5]
[1736623424713,7.7571,188.15,188.03,8.90472897]
[1736623425702,7.7571,188.15,188.04,28.90472897]
[1736623429131,7.7571,188.15,188.05,8.90472897]
[1736623430942,7.7571,188.15,188.04,28.90472897]
[1736623432035,7.7571,188.15,188.04,20.0]
[1736623432238,23.776884,188.14,188.04,28.90472897]
[1736623437448,23.776884,188.14,188.04,20.0]
[1736623437648,23.776884,188.14,188.04,28.90472897]
[1736623442642,105.676884,188.14,188.04,28.90472897]
[1736623444559,81.9,188.14,188.06,8.90472897]
[1736623444855,81.9,188.14,188.07,8.90472897]
[1736623445147,81.9,188.14,188.08,8.90472897]
[1736623445443,81.9,188.14,188.07,8.90472897]
[1736623446223,81.9,188.14,188.06,8.90472897]
[1736623448749,7.7571,188.15,188.06,8.90472897]
[1736623454153,7.7571,188.15,188.04,115.8946]
[1736623454327,7.7571,188.15,188.05,8.90472897]
[1736623459860,7.7571,188.15,188.06,8.90472897]
[1736623461962,7.7571,188.15,188.08,8.90472897]
[1736623462274,7.7571,188.15,188.09,8.90472897]
[1736623462444,7.7571,188.15,188.07,8.90472897]
[1736623467161,7.7571,188.15,188.06,8.90472897]
[1736623468172,7.7571,188.15,188.05,226.40472897]
[1736623468668,7.7571,188.15,188.06,8.90472897]
[1736623473058,7.7571,188.15,188.05,82.6]
[1736623474082,108.334384,188.14,188.04,28.90472897]
[1736623474379,108.334384,188.14,188.03,8.90472897]
[1736623480985,108.334384,188.14,188.04,28.90472897]
[1736623483593,108.334384,188.14,188.04,20.0]
[1736623483791,6.3873,188.11,188.01,82.6]
[1736623483995,23.776884,188.1,187.99,17.7582]
[1736623484315,1.531,188.09,187.99,8.90472897]
[1736623484876,1.531,188.09,187.98,8.90472897]
[1736623487074,6.3873,188.08,187.98,8.90472897]
[1736623487600,88.2873,188.08,187.98,8.90472897]
[1736623487913,23.776884,188.07,187.99,20.0]
[1736623488072,1.531,188.06,187.99,20.0]
[1736623496998,1.531,188.06,187.97,8.90472897]
[1736623497317,1.531,188.06,187.96,22.20502897]
[1736623498604,1.531,188.06,187.97,8.90472897]
[1736623498801,81.9,188.04,187.9,110.48400866]
[1736623499100,81.9,188.04,187.94,8.90472897]
[1736623500309,1.6332,188.03,187.94,8.90472897]
[1736623500495,1.6332,188.03,187.93,8.90472897]
[1736623501209,23.776884,188.02,187.93,8.90472897]
[1736623502100,83.5332,188.03,187.94,8.90472897]
[1736623502307,83.5332,188.03,187.96,8.90472897]
[1736623502613,83.5332,188.03,187.97,8.90472897]
[1736623504708,83.5332,188.03,187.98,8.90472897]
[1736623505399,83.5332,188.03,187.97,8.90472897]
[1736623507415,83.5332,188.03,187.96,8.90472897]
[1736623510202,83.5332,188.03,187.97,8.90472897]
[1736623514337,83.5332,188.03,187.94,13.3017]
[1736623514619,83.5332,188.03,187.97,8.90472897]
[1736623516025,83.5332,188.03,187.96,8.90472897]
[1736623518725,83.5332,188.03,187.97,8.90472897]
[1736623518938,83.5332,188.03,187.99,8.90472897]
[1736623520526,1.6332,188.03,187.99,8.90472897]
[1736623521110,1.6332,188.03,187.98,8.90472897]
[1736623528232,1.6332,188.03,187.97,28.90472897]
[1736623528919,1.6332,188.03,187.97,20.0]
[1736623530026,1.6332,188.03,187.94,82.6]
[1736623533626,23.776884,188.02,187.93,8.90472897]
[1736623533810,105.676884,188.02,187.92,20.0]
[1736623534011,23.776884,188.0,187.87,8.31888051]
[1736623534206,23.776884,187.98,187.87,8.31888051]
[1736623534433,23.776884,187.96,187.87,8.31888051]
[1736623534834,6.0729,187.95,187.87,8.31888051]
[1736623535217,23.776884,187.94,187.8,143.21888051]
[1736623535530,23.776884,187.94,187.84,8.90472897]
[1736623537036,1.5245,187.93,187.84,8.90472897]
[1736623538033,1.5245,187.93,187.83,28.90472897]
[1736623538238,1.5245,187.93,187.83,20.0]
[1736623540144,23.776884,187.92,187.82,20.0]
[1736623540324,23.776884,187.92,187.82,28.90472897]
[1736623543339,1.5245,187.93,187.84,8.90472897]
[1736623543818,1.5245,187.93,187.85,8.90472897]
[1736623546146,1.5245,187.93,187.84,8.90472897]
[1736623546321,1.5245,187.93,187.83,8.90472897]
[1736623547541,83.4245,187.93,187.83,8.90472897]
[1736623553243,83.4245,187.93,187.82,102.6]
[1736623553447,83.4245,187.93,187.83,8.90472897]
[1736623559375,83.4245,187.93,187.84,8.90472897]
[1736623560729,83.4245,187.93,187.83,8.90472897]
[1736623564342,83.4245,187.93,187.85,8.90472897]
[1736623564545,83.4245,187.93,187.86,8.90472897]
[1736623565252,83.4245,187.93,187.85,8.90472897]
[1736623572159,83.4245,187.93,187.87,8.90472897]
[1736623573272,1.5245,187.93,187.88,8.90472897]
[1736623573457,1.5245,187.93,187.87,8.90472897]
[1736623575148,1.5245,187.93,187.83,230.8095]
[1736623575454,1.5245,187.93,187.84,8.90472897]
[1736623580356,1.5245,187.93,187.85,8.90472897]
[1736623582970,1.5245,187.93,187.86,8.90472897]
[1736623585772,1.5245,187.93,187.87,28.90472897]
[1736623588251,1.5245,187.93,187.87,20.0]
[1736623591072,1.5245,187.93,187.88,8.90472897]
[1736623591269,6.0729,187.95,187.89,8.90472897]
[1736623591470,6.0729,187.95,187.9,8.90472897]
[1736623592366,6.0729,187.95,187.89,8.90472897]
[1736623593773,1.6356,187.97,187.91,8.90472897]
[1736623595686,6.603,187.99,187.92,8.90472897]
[1736623599988,6.603,187.99,187.9,14.10286454]
[1736623600164,6.603,187.99,187.92,8.90472897]
[1736623606192,6.603,187.99,187.91,8.90472897]
[1736623607192,6.603,187.99,187.9,82.6]
[1736623607391,6.603,187.99,187.9,91.50472897]
[1736623607975,6.603,187.99,187.9,82.6]
[1736623612080,1.6505,187.98,187.9,82.6]
[1736623616701,1.6505,187.98,187.9,91.50472897]
[1736623622428,23.776884,187.97,187.87,82.6]
[1736623622610,7.7362,187.96,187.87,82.6]
[1736623623503,7.7362,187.96,187.88,8.90472897]
[1736623623705,7.7362,187.96,187.89,8.90472897]
[1736623623930,7.7362,187.96,187.88,8.90472897]
[1736623624522,7.7362,187.96,187.87,82.6]
[1736623624727,105.676884,187.95,187.87,20.0]
[1736623625922,105.676884,187.95,187.85,8.90472897]
[1736623626850,81.9,187.94,187.85,8.90472897]
[1736623627033,81.9,187.94,187.84,82.6]
[1736623627232,81.9,187.94,187.84,91.50472897]
[1736623632902,81.9,187.94,187.84,82.6]
[1736623635002,25.386284,187.93,187.84,82.6]
[1736623637308,81.9,187.92,187.83,8.90472897]
[1736623637511,6.2764,187.91,187.83,8.90472897]
[1736623643417,6.2764,187.91,187.84,28.90472897]
[1736623644991,6.2764,187.91,187.85,8.90472897]
[1736623646714,6.2764,187.91,187.84,20.0]
[1736623646907,6.2764,187.91,187.85,8.90472897]
[1736623648614,6.2764,187.91,187.84,28.90472897]
[1736623650728,6.2764,187.91,187.84,20.0]
[1736623651409,6.2764,187.91,187.84,28.90472897]
[1736623664533,6.2764,187.91,187.84,20.0]
[1736623664725,6.2764,187.91,187.84,28.90472897]
[1736623667138,6.2764,187.91,187.84,20.0]
[1736623670951,81.9,187.92,187.84,28.90472897]
[1736623671151,1.6094,187.93,187.87,91.50472897]
[1736623671463,6.2027,187.96,187.91,8.90472897]
[1736623672240,6.2027,187.96,187.9,8.90472897]
[1736623672724,6.2027,187.96,187.9,28.90472897]
[1736623676152,6.2027,187.96,187.9,20.0]
[1736623680239,6.2027,187.96,187.9,28.90472897]
[1736623688488,83.5633,187.98,187.92,8.90472897]
[1736623688489,1.6633,187.98,187.92,8.90472897]
[1736623689867,1.6633,187.98,187.91,8.90472897]
[1736623694170,1.6633,187.98,187.91,91.50472897]
[1736623696794,1.6633,187.98,187.93,8.90472897]
[1736623696973,1.6633,187.98,187.93,91.50472897]
[1736623701703,1.6633,187.98,187.93,82.6]
[1736623704087,1.6633,187.98,187.93,91.50472897]
[1736623708490,1.6633,187.98,187.93,82.6]
[1736623709658,1.6633,187.98,187.9,246.40472897]
[1736623714086,1.6633,187.98,187.91,8.90472897]
[1736623715067,1.6633,187.98,187.91,91.50472897]
[1736623716885,1.6633,187.98,187.92,8.90472897]
[1736623720775,1.6633,187.98,187.91,82.6]
[1736623720967,1.6633,187.98,187.92,8.90472897]
[1736623721171,1.6633,187.98,187.92,91.50472897]
[1736623728811,1.6633,187.98,187.92,82.6]
[1736623733207,1.6633,187.98,187.9,111.50472897]
[1736623738104,1.6633,187.98,187.91,8.90472897]
[1736623740009,1.6633,187.98,187.92,8.90472897]
[1736623740206,1.6633,187.98,187.93,8.90472897]
[1736623742422,1.6633,187.98,187.94,91.50472897]
[1736623742720,1.6273,188.03,187.97,91.50472897]
[1736623742908,8.35384854,188.04,188.0,8.90472897]
[1736623743087,8.35384854,188.04,187.99,8.90472897]
[1736623743302,8.35384854,188.04,187.98,8.90472897]
[1736623743504,6.3276,188.05,187.98,8.90472897]
[1736623747227,6.3276,188.05,187.99,8.90472897]
[1736623755039,6.3276,188.05,187.98,8.90472897]
[1736623756125,6.3276,188.05,187.97,91.50472897]
[1736623757839,6.3276,188.05,187.97,82.6]
[1736623758128,1.5147,188.04,187.97,82.6]
[1736623759635,4.1737,188.04,187.97,82.6]
[1736623760031,4.1737,188.04,187.94,134.9]
[1736623760032,4.1737,188.04,187.94,82.6]
[1736623765941,1.5147,188.0,187.9,8.90472897]
[1736623766120,1.5147,188.0,187.89,82.6]
[1736623766316,1.5147,188.0,187.89,91.50472897]
[1736623767043,2.6597,187.99,187.89,91.50472897]
[1736623771750,2.6597,187.99,187.9,8.90472897]
[1736623772338,2.6597,187.99,187.91,8.90472897]
[1736623774650,2.6597,187.99,187.9,8.90472897]
[1736623786780,2.6597,187.99,187.84,16.98896106]
[1736623786781,1.557,187.94,187.84,82.6]
[1736623787857,23.776884,187.93,187.8,217.5]
[1736623788050,23.776884,187.93,187.82,8.90472897]
[1736623788673,2.6607,187.92,187.82,8.90472897]
[1736623788882,2.6607,187.92,187.81,8.90472897]
[1736623789469,6.2189,187.91,187.81,8.90472897]
[1736623790362,1.557,187.9,187.81,8.90472897]
[1736623792742,1.557,187.9,187.77,217.5]
[1736623792743,86.118,187.9,187.77,217.5]
[1736623792948,23.776884,187.89,187.78,8.90472897]
[1736623793368,6.2189,187.88,187.77,91.50472897]
[1736623793588,23.776884,187.87,187.76,8.90472897]
[1736623794774,26.438284,187.87,187.76,8.90472897]
[1736623795075,1.6533,187.86,187.76,8.90472897]
[1736623795466,23.776884,187.85,187.75,8.90472897]
[1736623796968,23.776884,187.85,187.76,8.90472897]
[1736623799175,23.776884,187.85,187.75,8.90472897]
[1736623799865,6.5264,187.84,187.71,137.01745393]
[1736623800068,1.5451,187.83,187.73,8.90472897]
[1736623800266,6.5264,187.82,187.72,8.90472897]
[1736623800470,6.5264,187.82,187.71,143.80472897]
[1736623800664,1.5451,187.8,187.71,143.80472897]
[1736623800875,1.5451,187.8,187.71,8.90472897]
[1736623802275,1.5451,187.8,187.73,8.90472897]
[1736623802484,1.5451,187.8,187.7,82.6]
[1736623802485,1.5451,187.8,187.74,8.90472897]
[1736623802788,1.5451,187.8,187.78,8.90472897]
[1736623802961,6.5264,187.82,187.78,8.90472897]
[1736623804752,1.5451,187.85,187.8,8.90472897]
[1736623804959,1.5451,187.85,187.77,20.0]
[1736623804960,1.5451,187.85,187.81,8.90472897]
[1736623805272,1.5451,187.85,187.8,8.90472897]
[1736623807867,1.5451,187.85,187.79,8.90472897]
[1736623808273,1.5451,187.85,187.8,8.90472897]
[1736623808487,6.5264,187.87,187.77,237.5]
[1736623808685,1.5451,187.9,187.84,8.90472897]
[1736623809184,1.5451,187.9,187.83,8.90472897]
[1736623813992,1.5451,187.9,187.83,91.50472897]
[1736623818467,1.5451,187.9,187.83,82.6]
[1736623820092,1.5451,187.9,187.79,82.6]
[1736623820282,1.5451,187.9,187.8,8.90472897]
[1736623820784,2.6611,187.89,187.8,8.90472897]
[1736623820979,2.6611,187.89,187.79,91.50472897]
[1736623822070,2.6611,187.89,187.8,8.90472897]
[1736623824071,2.6611,187.89,187.79,91.50472897]
[1736623829298,2.6611,187.89,187.79,82.6]
[1736623829481,2.6611,187.89,187.79,91.50472897]
[1736623832285,6.3093,187.88,187.79,91.50472897]
[1736623832480,1.6583,187.87,187.79,82.6]
[1736623833791,1.6583,187.87,187.77,8.90472897]
[1736623833985,6.3093,187.85,187.75,82.6]
[1736623834193,1.6583,187.84,187.75,82.6]
[1736623834393,1.6583,187.84,187.72,226.40472897]
[1736623835805,2.6619,187.83,187.72,91.50472897]
[1736623838390,23.776884,187.82,187.72,82.6]
[1736623839101,23.776884,187.82,187.71,8.90472897]
[1736623839287,2.6622,187.81,187.71,8.90472897]
[1736623840008,7.6917,187.8,187.7,8.90472897]
[1736623840212,7.6917,187.8,187.69,91.50472897]
[1736623841319,2.6626,187.78,187.66,82.6]
[1736623841620,2.6626,187.78,187.67,8.90472897]
[1736623842608,7.6917,187.77,187.67,8.90472897]
[1736623842899,7.6917,187.77,187.66,91.50472897]
[1736623843322,7.6917,187.77,187.67,8.90472897]
[1736623845401,7.6917,187.77,187.66,8.90472897]
[1736623846725,6.0771,187.74,187.65,82.6]
[1736623849340,8.7404,187.74,187.63,91.50472897]
[1736623849508,23.776884,187.73,187.63,91.50472897]
[1736623849707,23.776884,187.73,187.57,62.9543]
[1736623849708,23.776884,187.71,187.57,274.12]
[1736623849914,1.6146,187.7,187.57,283.02472897]
[1736623850234,1.6146,187.7,187.6,20.0]
[1736623850614,23.776884,187.69,187.6,20.0]
[1736623851417,26.440884,187.69,187.6,20.0]
[1736623853836,6.0771,187.68,187.6,20.0]
[1736623856247,6.0771,187.68,187.6,28.90472897]
[1736623858052,6.0771,187.68,187.6,20.0]
[1736623858257,6.0771,187.68,187.6,28.90472897]
[1736623858721,6.0771,187.68,187.63,8.90472897]
[1736623858926,6.0771,187.68,187.65,8.90472897]
[1736623859450,6.0771,187.68,187.64,8.90472897]
[1736623860456,6.0771,187.68,187.6,102.6]
[1736623860648,6.0771,187.68,187.61,8.90472897]
[1736623861852,6.0771,187.68,187.62,8.90472897]
[1736623863059,6.0771,187.68,187.61,8.90472897]
[1736623864929,6.0771,187.68,187.61,91.50472897]
[1736623865324,6.0771,187.68,187.62,8.90472897]
[1736623866168,6.0771,187.68,187.61,91.50472897]
[1736623873765,6.0771,187.68,187.62,8.90472897]
[1736623873962,1.6146,187.7,187.63,8.90472897]
[1736623878653,1.6146,187.7,187.61,82.6]
[1736623878953,4.2784,187.7,187.61,82.6]
[1736623884209,4.2784,187.7,187.57,8.90472897]
[1736623884210,8.7026,187.68,187.57,8.90472897]
[1736623885501,8.7026,187.68,187.58,28.90472897]
[1736623888190,8.7026,187.68,187.58,20.0]
[1736623888575,1.6443,187.67,187.58,20.0]
[1736623890767,26.441184,187.66,187.55,91.50472897]
[1736623891867,26.441184,187.66,187.55,8.90472897]
[1736623892069,1.6443,187.63,187.54,8.90472897]
[1736623895487,1.6443,187.63,187.53,8.90472897]
[1736623897274,1.6443,187.63,187.52,226.40472897]
[1736623897474,6.5718,187.62,187.52,217.5]
[1736623897983,9.2367,187.62,187.52,82.6]
[1736623898197,9.2367,187.62,187.51,143.80472897]
[1736623899207,9.2367,187.62,187.49,95.9338]
[1736623899208,23.776884,187.61,187.49,217.5]
[1736623899403,2.6652,187.6,187.5,8.90472897]
[1736623899592,1.5452,187.58,187.49,226.40472897]
[1736623899997,6.5718,187.57,187.49,82.6]
[1736623900182,6.5718,187.57,187.51,20.0]
[1736623900690,6.5718,187.57,187.46,134.9]
[1736623901007,23.776884,187.56,187.45,91.50472897]
[1736623901203,1.5452,187.55,187.45,91.50472897]
[1736623902317,23.776884,187.54,187.45,82.6]
[1736623902478,6.5718,187.53,187.45,82.6]
[1736623903604,2.6658,187.56,187.48,20.0]
[1736623903803,1.5452,187.6,187.49,8.90472897]
[1736623904005,1.5452,187.6,187.52,8.90472897]
[1736623904191,1.5452,187.6,187.53,8.90472897]
[1736623904393,1.5452,187.6,187.54,8.90472897]
[1736623904719,1.5452,187.6,187.51,163.80472897]
[1736623906303,1.5452,187.6,187.51,154.9]
[1736623906494,1.5452,187.6,187.51,163.80472897]
[1736623906686,1.5452,187.6,187.53,8.90472897]
[1736623907996,1.5452,187.6,187.51,154.9]
[1736623909207,23.776884,187.59,187.51,154.9]
[1736623909413,23.776884,187.59,187.51,20.0]
[1736623910716,23.776884,187.59,187.48,91.50472897]
[1736623911094,23.776884,187.59,187.49,8.90472897]
[1736623912614,1.5452,187.6,187.5,8.90472897]
[1736623912801,1.5452,187.6,187.52,8.90472897]
[1736623913393,1.5452,187.6,187.51,28.90472897]
[1736623919795,1.5452,187.6,187.51,20.0]
[1736623926604,1.5452,187.6,187.51,28.90472897]
[1736623927932,1.5452,187.6,187.55,8.90472897]
[1736623929332,1.5452,187.6,187.54,8.90472897]
[1736623930308,1.5452,187.6,187.55,8.90472897]
[1736623935328,1.5452,187.6,187.52,134.9]
[1736623937329,1.5452,187.6,187.5,8.90472897]
[1736623939347,1.5452,187.6,187.51,28.90472897]
[1736623940041,1.5452,187.6,187.52,8.90472897]
[1736623941348,1.5452,187.6,187.51,20.0]
[1736623941864,4.2105,187.6,187.51,20.0]
[1736623943144,2.6655,187.58,187.48,217.5]
[1736623943350,23.776884,187.56,187.46,8.90472897]
[1736623943655,23.776884,187.56,187.44,226.40472897]
[1736623944041,23.776884,187.56,187.44,91.50472897]
[1736623944548,2.6659,187.55,187.44,91.50472897]
[1736623946024,2.6659,187.55,187.45,8.90472897]
[1736623948672,2.6659,187.55,187.44,82.6]
[1736623948844,2.6659,187.55,187.44,91.50472897]
[1736623951172,25.391084,187.54,187.44,82.6]
[1736623951332,9.099,187.53,187.42,143.80472897]
[1736623951835,9.099,187.53,187.43,8.90472897]
[1736623954257,9.099,187.53,187.42,134.9]
[1736623954460,9.099,187.53,187.42,143.80472897]
[1736623954635,9.099,187.53,187.43,8.90472897]
[1736623955568,6.4328,187.53,187.44,8.90472897]
[1736623955767,6.4328,187.53,187.45,8.90472897]
[1736623955942,6.4328,187.53,187.48,8.90472897]
[1736623956256,1.6142,187.54,187.5,8.90472897]
[1736623956451,7.7787,187.58,187.51,8.90472897]
[1736623958463,7.7787,187.58,187.49,8.90472897]
[1736623958839,7.7787,187.58,187.47,134.9]
[1736623959040,7.7787,187.58,187.48,8.90472897]
[1736623960357,7.7787,187.58,187.47,134.9]
[1736623960558,7.7787,187.58,187.47,143.80472897]
[1736623961240,7.7787,187.58,187.47,134.9]
[1736623961463,1.5118,187.56,187.42,217.5]
[1736623961775,23.776884,187.53,187.42,82.6]
[1736623962072,23.776884,187.53,187.42,91.50472897]
[1736623963749,6.2669,187.51,187.42,82.6]
[1736623964466,1.5118,187.49,187.37,217.5]
[1736623964648,4.1786,187.49,187.37,217.5]
[1736623965055,4.1786,187.49,187.37,226.40472897]
[1736623965261,23.776884,187.48,187.37,226.40472897]
[1736623968048,23.776884,187.48,187.38,8.90472897]
[1736623968268,23.776884,187.48,187.39,8.90472897]
[1736623970659,1.5118,187.49,187.41,8.90472897]
[1736623970861,1.5118,187.49,187.43,8.90472897]
[1736623972576,1.5118,187.49,187.39,0.80008425]
[1736623972778,1.5118,187.49,187.38,217.5]
[1736623972987,1.5118,187.49,187.38,226.40472897]
[1736623973386,1.5118,187.49,187.39,8.90472897]
[1736623973575,1.5118,187.49,187.4,8.90472897]
[1736623974265,1.5118,187.49,187.39,8.90472897]
[1736623977587,1.5118,187.49,187.38,226.40472897]
[1736623978690,1.5118,187.49,187.39,8.90472897]
[1736623978901,1.5118,187.49,187.4,8.90472897]
[1736623980191,1.5118,187.49,187.39,8.90472897]
[1736623981701,1.5118,187.49,187.4,8.90472897]
[1736623981902,1.5118,187.49,187.42,8.90472897]
[1736623982190,1.5118,187.49,187.43,8.90472897]
[1736623982688,1.5118,187.49,187.44,8.90472897]
[1736623982896,1.5118,187.49,187.45,8.90472897]
[1736623983198,1.5118,187.49,187.43,20.0]
[1736623983372,1.5118,187.49,187.41,143.80472897]
[1736623985293,1.5118,187.49,187.41,134.9]
[1736623987124,1.5118,187.49,187.4,8.90472897]
[1736623987773,1.5118,187.49,187.41,8.90472897]
[1736623988391,1.5118,187.49,187.39,8.90472897]
[1736623989904,1.5118,187.49,187.4,8.90472897]
[1736623990080,1.5118,187.49,187.4,28.90472897]
[1736623990701,1.5118,187.49,187.4,20.0]
[1736623993382,1.5118,187.49,187.4,28.90472897]
[1736623995207,1.5118,187.49,187.4,20.0]
[1736623998299,1.5118,187.49,187.41,20.0]
[1736623999694,1.5118,187.49,187.41,28.90472897]
[1736624007117,1.5118,187.49,187.41,20.0]
[1736624007317,1.5118,187.49,187.4,8.90472897]
[1736624008618,1.5118,187.49,187.4,143.80472897]
[1736624009317,1.5118,187.49,187.41,8.90472897]
[1736624015508,1.5118,187.49,187.4,143.80472897]
[1736624020924,1.5118,187.49,187.41,8.90472897]
[1736624021427,1.5118,187.49,187.4,134.9]
[1736624021628,1.5118,187.49,187.4,143.80472897]
[1736624024327,1.5118,187.49,187.41,8.90472897]
[1736624026502,1.5118,187.49,187.41,143.80472897]
[1736624027030,1.5118,187.49,187.41,134.9]
[1736624032623,1.5118,187.49,187.39,82.6]
[1736624032822,6.176,187.48,187.39,82.6]
[1736624034239,23.776884,187.47,187.38,134.9]
[1736624034425,25.393484,187.47,187.38,134.9]
[1736624035218,8.0301,187.46,187.38,134.9]
[1736624037244,8.0301,187.46,187.36,8.90472897]
[1736624037450,8.0301,187.46,187.37,8.90472897]
[1736624038550,8.0301,187.46,187.35,134.9]
[1736624038912,8.0301,187.46,187.35,143.80472897]
[1736624039449,23.776884,187.45,187.35,143.80472897]
[1736624039810,23.776884,187.45,187.35,134.9]
[1736624040544,1.5875,187.44,187.35,134.9]
[1736624041547,1.5875,187.44,187.34,226.40472897]
[1736624041731,1.5875,187.41,187.31,8.31888051]
[1736624041928,23.776884,187.4,187.31,8.31888051]
[1736624042639,23.776884,187.4,187.3,8.90472897]
[1736624042852,23.776884,187.4,187.31,28.90472897]